fUSD/lending_fUSD_20240612
["ID","MTS","AMOUNT","RATE_DAILY","PERIOD"]
[329287421,1718217052175,-16274.53,0.00026027,2]
[329287423,1718217052188,-16274.53,0.00026027,2]
[329287425,1718217052198,-16274.53,0.00026027,2]
[329287427,1718217052208,-16274.53,0.00026027,2]
[329287429,1718217052219,-16274.53,0.00026027,2]
[329287431,1718217052229,-16274.53,0.00026027,2]
[329287433,1718217052240,-16274.53,0.00026027,2]
[329287435,1718217052251,-16274.53,0.00026027,2]
[329287437,1718217052261,-16274.53,0.00026027,2]
[329287439,1718217052271,-16274.53,0.00026027,2]
[329287441,1718217052281,-2443.33613214,0.00026027,2]
[329287444,1718217052298,-6862.01560671,0.00026027,2]
[329287446,1718217052310,-255.41169921,0.00026027,2]
[329287449,1718217052335,-155.0,0.00018585,2]
[329287451,1718217052345,-6713.76656194,0.00026027,2]
[329287453,1718217052356,-10761.58030499,0.00026027,2]
[329287455,1718217052369,-2671.43279609,0.00026027,2]
[329287456,1718217052381,-890.2,0.00026027,2]
[329287457,1718217052393,-866.09290291,0.00026027,2]
[329287458,1718217052415,-1085.22399601,0.00026027,2]
[329287459,1718217052427,-813.00981443,0.00026027,2]
[329287460,1718217052447,-835.39411949,0.00026027,2]
[329287461,1718217052460,-769.1350846,0.00026027,2]
[329287462,1718217052474,-13856.99098148,0.00026027,2]
[329287463,1718217052486,-16274.53,0.00026027,2]
[329287465,1718217052500,-16274.53,0.00026027,2]
[329287467,1718217052510,-16274.53,0.00026027,2]
[329287469,1718217052521,-16274.53,0.00026027,2]
[329287471,1718217052531,-16274.53,0.00026027,2]
[329287473,1718217052541,-16274.53,0.00026027,2]
[329287475,1718217052552,-16274.67519449,0.00026027,2]
[329287477,1718217052562,-218.65835764,0.00026031,2]
[329287479,1718217052576,-154.80026439,0.00026032,2]
[329287481,1718217052587,-152.96395665,0.00026088,2]
[329287483,1718217052598,-980.44398959,0.00026096,2]
[329287486,1718217052608,-1197.30769937,0.00026096,2]
[329287487,1718217052618,-218.65835764,0.00026097,2]
[329287489,1718217052629,-1847.62319578,0.00026134,2]
[329287491,1718217052641,-218.65835764,0.00026221,2]
[329287493,1718217052658,-154.13615401,0.00026238,2]
[329287495,1718217052669,-160.69768341,0.00026259,2]
[329287497,1718217052679,-2000.0,0.00026301,3]
[329287499,1718217052692,-151.23338322,0.00026363,2]
[329287501,1718217052703,-154.13615401,0.00026376,2]
[329287503,1718217052714,-162.72443493,0.00026423,2]
[329287505,1718217052725,-151.23338322,0.00026443,2]
[329287507,1718217052736,-2019.04,0.0002646,2]
[329287509,1718217052746,-156.707655,0.00026495,2]
[329287511,1718217052757,-153.72976904,0.00026499,2]
[329287513,1718217052768,-153.72976904,0.00026507,2]
[329287515,1718217052779,-150.0,0.00026599,2]
[329287517,1718217052790,-3290.0,0.000266,5]
[329287519,1718217052800,-151.23338322,0.00026601,2]
[329287521,1718217052811,-151.23338322,0.0002665,2]
[329287523,1718217052821,-1000.0,0.00026655,2]
[329287525,1718217052831,-299.51987427,0.00026668,2]
[329287527,1718217052843,-154.13615401,0.00026672,2]
[329287529,1718217052854,-515.8472636,0.00026684,2]
[329287531,1718217052864,-156.707655,0.00026684,2]
[329287533,1718217052876,-152.96395665,0.00026694,2]
[329287535,1718217052886,-160.58815834,0.00026711,2]
[329287537,1718217052897,-154.13615401,0.00026758,2]
[329287539,1718217052908,-153.51553158,0.00026808,2]
[329287541,1718217052918,-158.32026496,0.00026819,2]
[329287543,1718217052929,-515.8472636,0.00026833,2]
[329287545,1718217052941,-156.707655,0.00026838,2]
[329287547,1718217052952,-151.23338322,0.00026845,2]
[329287549,1718217052963,-159.41319751,0.00026879,2]
[329287551,1718217052974,-150.0,0.00026883,2]
[329287553,1718217052984,-515.8472636,0.00026919,2]
[329287555,1718217052996,-232.52690735,0.00026922,2]
[329287557,1718217053007,-151.23338322,0.00026923,2]
[329287559,1718217053018,-1400.0,0.00027,2]
[329287561,1718217053028,-17804.38443806,0.00027,2]
[329287563,1718217053039,-1107.0,0.00027,2]
[329287565,1718217053050,-1107.49563705,0.00027,2]
[329287567,1718217053060,-1800.0,0.00027,28]
[329287569,1718217053070,-2000.0,0.00027,2]
[329287571,1718217053080,-218.65835764,0.00027009,2]
[329287573,1718217053090,-2920.82815,0.0002701,2]
[329287575,1718217053100,-201.41727774,0.00027075,2]
[329287577,1718217053111,-278.08,0.00027076,2]
[329287579,1718217053120,-218.65835764,0.00027098,2]
[329287581,1718217053130,-160.58815834,0.00027109,2]
[329287583,1718217053141,-3457.87,0.00027123,2]
[329287585,1718217053151,-156.707655,0.00027145,2]
[329287587,1718217053161,-159.41319751,0.00027155,2]
[329287589,1718217053173,-153.72976904,0.00027191,2]
[329287591,1718217053183,-3865.05048832,0.000272,2]
[329287593,1718217053196,-156.707655,0.00027279,2]
[329287595,1718217053206,-150.0,0.00027362,2]
[329287597,1718217053215,-980.44398959,0.00027364,2]
[329287599,1718217053227,-1197.30769937,0.00027364,2]
[329287601,1718217053237,-500.0,0.0002737,2]
[329287604,1718217053248,-218.65835764,0.00027383,2]
[329287606,1718217053259,-500.0,0.00027387,2]
[329287608,1718217053269,-58000.0,0.00027388,2]
[329287609,1718217053279,-506.62945582,0.00027397,2]
[329287611,1718217053288,-500.0,0.00027397,2]
[329287613,1718217053299,-500.0,0.00027397,2]
[329287615,1718217053309,-500.0,0.00027397,2]
[329287617,1718217053319,-500.0,0.00027397,2]
[329287619,1718217053330,-500.0,0.00027397,2]
[329287621,1718217053340,-500.0,0.00027397,2]
[329287623,1718217053350,-500.0,0.00027397,2]
[329287625,1718217053360,-500.0,0.00027397,2]
[329287627,1718217053371,-531.5156704,0.00027397,2]
[329287629,1718217053381,-500.0,0.00027397,2]
[329287631,1718217053391,-500.0,0.00027397,2]
[329287633,1718217053401,-500.0,0.00027397,2]
[329287635,1718217053412,-500.0,0.00027397,2]
[329287637,1718217053423,-500.0,0.00027397,2]
[329287639,1718217053433,-500.0,0.00027397,2]
[329287641,1718217053446,-500.0,0.00027397,2]
[329287643,1718217053456,-500.0,0.00027397,2]
[329287645,1718217053468,-500.0,0.00027397,2]
[329287647,1718217053479,-500.0,0.00027397,2]
[329287649,1718217053492,-500.0,0.00027397,2]
[329287651,1718217053502,-500.0,0.00027397,2]
[329287653,1718217053512,-500.0,0.00027397,2]
[329287655,1718217053523,-500.0,0.00027397,2]
[329287657,1718217053534,-500.0,0.00027397,2]
[329287659,1718217053543,-500.0,0.00027397,2]
[329287672,1718217053680,-500.0,0.00027397,2]
[329287674,1718217053694,-500.0,0.00027397,2]
[329287676,1718217053704,-500.0,0.00027397,2]
[329287678,1718217053715,-500.0,0.00027397,2]
[329287681,1718217053735,-500.0,0.00027397,2]
[329287683,1718217053746,-500.0,0.00027397,2]
[329287685,1718217053759,-500.0,0.00027397,2]
[329287687,1718217053771,-500.0,0.00027397,2]
[329287689,1718217053783,-500.0,0.00027397,2]
[329287691,1718217053794,-350.0,0.00027397,2]
[329287693,1718217053805,-500.0,0.00027397,2]
[329287695,1718217053816,-500.0,0.00027397,2]
[329287697,1718217053828,-500.0,0.00027397,2]
[329287699,1718217053840,-500.0,0.00027397,2]
[329287701,1718217053854,-500.0,0.00027397,2]
[329287703,1718217053868,-500.0,0.00027397,10]
[329287705,1718217053880,-500.0,0.00027397,10]
[329287707,1718217053892,-500.0,0.00027397,10]
[329287709,1718217053903,-320.62871031,0.00027397,10]
[329287711,1718217053914,-1973.11498718,0.00027397,20]
[329287713,1718217053925,-58000.0,0.00027397,2]
[329287715,1718217053935,-151.7276677,0.00027397,2]
[329287717,1718217053946,-201.34103923,0.00027397,7]
[329287719,1718217053956,-360.0,0.00027397,6]
[329287721,1718217053967,-150.0,0.00027397,2]
[329287723,1718217053978,-500.0,0.00027397,6]
[329287725,1718217053989,-500.0,0.00027397,6]
[329287727,1718217053999,-500.0,0.00027397,6]
[329287729,1718217054009,-500.0,0.00027397,6]
[329287731,1718217054021,-500.0,0.00027397,6]
[329287733,1718217054032,-500.0,0.00027397,6]
[329287735,1718217054042,-500.0,0.00027397,6]
[329287737,1718217054053,-500.0,0.00027397,6]
[329287739,1718217054063,-500.0,0.00027397,6]
[329287741,1718217054073,-500.0,0.00027397,6]
[329287744,1718217054084,-500.0,0.00027397,6]
[329287746,1718217054094,-500.0,0.00027397,6]
[329287748,1718217054104,-500.0,0.00027397,6]
[329287750,1718217054115,-500.0,0.00027397,6]
[329287752,1718217054126,-500.0,0.00027397,6]
[329287754,1718217054136,-500.0,0.00027397,6]
[329287756,1718217054147,-500.0,0.00027397,6]
[329287758,1718217054158,-500.0,0.00027397,6]
[329287760,1718217054168,-500.0,0.00027397,6]
[329287762,1718217054179,-500.0,0.00027397,6]
[329287764,1718217054190,-500.0,0.00027397,6]
[329287766,1718217054201,-500.0,0.00027397,6]
[329287768,1718217054211,-500.0,0.00027397,6]
[329287770,1718217054222,-500.0,0.00027397,6]
[329287772,1718217054233,-500.0,0.00027397,6]
[329287774,1718217054245,-500.0,0.00027397,6]
[329287776,1718217054255,-500.0,0.00027397,6]
[329287778,1718217054265,-500.0,0.00027397,6]
[329287780,1718217054276,-500.0,0.00027397,6]
[329287782,1718217054286,-500.0,0.00027397,6]
[329287784,1718217054297,-500.0,0.00027397,6]
[329287786,1718217054307,-500.0,0.00027397,6]
[329287788,1718217054317,-500.0,0.00027397,6]
[329287791,1718217054327,-500.0,0.00027397,6]
[329287793,1718217054338,-500.0,0.00027397,6]
[329287795,1718217054348,-500.0,0.00027397,6]
[329287797,1718217054358,-500.0,0.00027397,6]
[329287799,1718217054369,-500.0,0.00027397,6]
[329287801,1718217054379,-500.0,0.00027397,6]
[329287803,1718217054390,-500.0,0.00027397,6]
[329287805,1718217054400,-500.0,0.00027397,6]
[329287807,1718217054410,-500.0,0.00027397,6]
[329287809,1718217054420,-500.0,0.00027397,6]
[329287811,1718217054430,-500.0,0.00027397,6]
[329287813,1718217054441,-500.0,0.00027397,6]
[329287815,1718217054451,-500.0,0.00027397,6]
[329287817,1718217054463,-500.0,0.00027397,6]
[329287819,1718217054473,-500.0,0.00027397,6]
[329287821,1718217054484,-500.0,0.00027397,6]
[329287823,1718217054498,-500.0,0.00027397,6]
[329287825,1718217054508,-500.0,0.00027397,6]
[329287826,1718217054518,-500.0,0.00027397,6]
[329287827,1718217054529,-500.0,0.00027397,6]
[329287828,1718217054539,-500.0,0.00027397,6]
[329287829,1718217054549,-500.0,0.00027397,6]
[329287830,1718217054559,-500.0,0.00027397,6]
[329287831,1718217054571,-500.0,0.00027397,6]
[329287832,1718217054581,-500.0,0.00027397,6]
[329287833,1718217054591,-500.0,0.00027397,6]
[329287834,1718217054600,-500.0,0.00027397,6]
[329287835,1718217054610,-598.0,0.00027397,6]
[329287836,1718217054619,-17998.09,0.00027397,2]
[329287837,1718217054629,-15905.34,0.00027397,2]
[329287838,1718217054646,-196.07,0.00027397,2]
[329287839,1718217054662,-586.74,0.00027397,2]
[329287840,1718217054673,-596.84,0.00027397,10]
[329287841,1718217054684,-497.36,0.00027397,10]
[329287842,1718217054696,-414.47,0.00027397,10]
[329287843,1718217054706,-500.0,0.000274,2]
[329287844,1718217054719,-389.67,0.000274,2]
[329287845,1718217054730,-389.67,0.000274,2]
[329287846,1718217054741,-389.67,0.000274,2]
[329287847,1718217054752,-389.67,0.000274,2]
[329287848,1718217054762,-389.67,0.000274,2]
[329287849,1718217054773,-389.67,0.000274,2]
[329287850,1718217054784,-389.67,0.000274,2]
[329287851,1718217054795,-389.67,0.000274,2]
[329287852,1718217054806,-1847.62319578,0.0002756,2]
[329287853,1718217054817,-162.72443493,0.00027577,2]
[329287854,1718217054829,-153.72976904,0.00027582,2]
[329287855,1718217054839,-150.0,0.00027599,2]
[329287856,1718217054850,-500.0,0.00027599,2]
[329287857,1718217054860,-5568.1692,0.000276,2]
[329287858,1718217054873,-2845.3185,0.000276,2]
[329287859,1718217054886,-165.4093236,0.00027675,2]
[329287860,1718217054898,-218.65835764,0.00027678,2]
[329287861,1718217054909,-515.8472636,0.00027697,2]
[329287862,1718217054920,-518.68,0.00027698,7]
[329287863,1718217054930,-518.68,0.00027698,7]
[329287864,1718217054942,-518.68,0.00027698,7]
[329287865,1718217054953,-518.68,0.00027698,7]
[329287866,1718217054964,-518.68,0.00027698,7]
[329287867,1718217054975,-518.68,0.00027698,7]
[329287868,1718217054986,-518.68,0.00027698,7]
[329287870,1718217054998,-518.68,0.00027698,7]
[329287873,1718217055013,-518.68,0.00027698,7]
[329287875,1718217055023,-518.68,0.00027698,7]
[329287877,1718217055034,-518.68,0.00027698,7]
[329287879,1718217055048,-518.68,0.00027698,7]
[329287880,1718217055060,-518.68,0.00027698,7]
[329287882,1718217055074,-518.68,0.00027698,7]
[329287883,1718217055086,-518.68,0.00027698,7]
[329287885,1718217055097,-518.68,0.00027698,7]
[329287887,1718217055109,-518.68,0.00027698,7]
[329287889,1718217055121,-518.68,0.00027698,7]
[329287891,1718217055135,-518.68,0.00027698,7]
[329287893,1718217055146,-518.68,0.00027698,7]
[329287896,1718217055158,-518.68,0.00027698,7]
[329287898,1718217055170,-518.68,0.00027698,7]
[329287900,1718217055180,-518.68,0.00027698,7]
[329287902,1718217055195,-518.81601077,0.00027698,7]
[329287904,1718217055209,-515.8472636,0.00027701,2]
[329287906,1718217055222,-515.8472636,0.00027718,2]
[329287908,1718217055233,-1847.62319578,0.00027795,2]
[329287910,1718217055244,-158.32026496,0.00027805,2]
[329287913,1718217055258,-218.65835764,0.00027824,2]
[329287915,1718217055270,-160.58815834,0.00027861,2]
[329287917,1718217055281,-150.0,0.00027883,2]
[329287919,1718217055292,-2580.6744,0.000279,2]
[329287921,1718217055303,-266.2781261,0.000279,2]
[329287923,1718217055314,-515.8472636,0.00027914,2]
[329287925,1718217055326,-500.0,0.00027938,2]
[329287926,1718217055337,-154.82327134,0.00027941,2]
[329287929,1718217055349,-500.0,0.00027947,2]
[329287931,1718217055361,-455.61,0.00027951,2]
[329287933,1718217055372,-500.0,0.00027956,2]
[329287935,1718217055383,-500.0,0.00027965,2]
[329287937,1718217055394,-150.5,0.0002797,15]
[329287939,1718217055405,-150.5,0.0002797,15]
[329287941,1718217055416,-473.662,0.00027972,2]
[329287943,1718217055428,-777.49,0.00027972,2]
[329287945,1718217055441,-871.482,0.00027972,2]
[329287947,1718217055452,-500.0,0.00027974,2]
[329287949,1718217055463,-162.72443493,0.00027979,2]
[329287951,1718217055475,-150.5,0.0002798,15]
[329287953,1718217055491,-150.5,0.0002798,15]
[329287955,1718217055503,-154.56920933,0.00027981,2]
[329287957,1718217055515,-500.0,0.00027982,2]
[329287959,1718217055525,-150.5,0.0002799,15]
[329287960,1718217055535,-150.5,0.0002799,15]
[329287961,1718217055545,-200.28869414,0.0002799,2]
[329287962,1718217055555,-500.0,0.00027991,2]
[329287963,1718217055565,-500.0,0.00027999,2]
[329287964,1718217055576,-224.98486477,0.00028,2]
[329287965,1718217055588,-469.26225557,0.00028,2]
[329287966,1718217055599,-1107.0,0.00028,2]
[329287967,1718217055610,-24809.5967566,0.00028,2]
[329287968,1718217055620,-496.19193514,0.00028,2]
[329287969,1718217055631,-706.15878484,0.00028,10]
[329287970,1718217055657,-500.0,0.00028,2]
[329287972,1718217055671,-901.74089862,0.00028,2]
[329287974,1718217055682,-901.74089862,0.00028,2]
[329287976,1718217055696,-901.74089862,0.00028,2]
[329287978,1718217055707,-901.74089862,0.00028,2]
[329287980,1718217055718,-901.74089862,0.00028,2]
[329287982,1718217055728,-901.74089862,0.00028,2]
[329287984,1718217055739,-901.74089862,0.00028,2]
[329287986,1718217055749,-901.74089862,0.00028,2]
[329287987,1718217055760,-901.74089862,0.00028,2]
[329287990,1718217055773,-901.74089862,0.00028,2]
[329287992,1718217055784,-901.74089862,0.00028,2]
[329287994,1718217055796,-901.74089862,0.00028,2]
[329287996,1718217055808,-901.74089862,0.00028,2]
[329287998,1718217055821,-901.74089862,0.00028,2]
[329288000,1718217055832,-901.74089862,0.00028,2]
[329288002,1718217055844,-901.74089862,0.00028,2]
[329288004,1718217055855,-901.74089862,0.00028,2]
[329288006,1718217055868,-901.74089862,0.00028,2]
[329288008,1718217055880,-901.74089862,0.00028,2]
[329288010,1718217055892,-901.74089862,0.00028,2]
[329288012,1718217055905,-901.74089862,0.00028,2]
[329288014,1718217055917,-901.74089862,0.00028,2]
[329288016,1718217055928,-901.74089862,0.00028,2]
[329288018,1718217055941,-901.74089862,0.00028,2]
[329288020,1718217055952,-901.74089862,0.00028,2]
[329288022,1718217055963,-901.74089862,0.00028,2]
[329288024,1718217055974,-901.74089862,0.00028,2]
[329288026,1718217055985,-901.74089862,0.00028,2]
[329288028,1718217055996,-901.74089862,0.00028,2]
[329288030,1718217056007,-901.74089862,0.00028,2]
[329288031,1718217056018,-901.74089862,0.00028,2]
[329288033,1718217056029,-901.74089862,0.00028,2]
[329288035,1718217056040,-901.74089862,0.00028,2]
[329288037,1718217056052,-901.74089862,0.00028,2]
[329288039,1718217056064,-901.74089862,0.00028,2]
[329288041,1718217056078,-901.74089862,0.00028,2]
[329288043,1718217056089,-901.74089862,0.00028,2]
[329288045,1718217056101,-901.74089862,0.00028,2]
[329288047,1718217056113,-901.74089862,0.00028,2]
[329288049,1718217056125,-901.74089862,0.00028,2]
[329288051,1718217056137,-841.78892269,0.00028,2]
[329288053,1718217056148,-841.78892269,0.00028,2]
[329288055,1718217056158,-841.78892269,0.00028,2]
[329288057,1718217056171,-841.78892269,0.00028,2]
[329288059,1718217056185,-841.78892269,0.00028,2]
[329288061,1718217056200,-899.63053233,0.00028,2]
[329288063,1718217056213,-899.63053233,0.00028,2]
[329288065,1718217056224,-899.63053233,0.00028,2]
[329288067,1718217056236,-899.63053233,0.00028,2]
[329288069,1718217056248,-899.63053233,0.00028,2]
[329288071,1718217056260,-899.63053233,0.00028,2]
[329288073,1718217056271,-899.63053233,0.00028,2]
[329288075,1718217056283,-899.63053233,0.00028,2]
[329288077,1718217056294,-899.63053233,0.00028,2]
[329288078,1718217056306,-899.63053233,0.00028,2]
[329288079,1718217056317,-899.63053233,0.00028,2]
[329288080,1718217056329,-899.63053233,0.00028,2]
[329288081,1718217056340,-899.63053233,0.00028,2]
[329288082,1718217056352,-899.63053233,0.00028,2]
[329288083,1718217056364,-899.63053233,0.00028,2]
[329288084,1718217056377,-899.63053233,0.00028,2]
[329288085,1718217056389,-899.63053233,0.00028,2]
[329288086,1718217056401,-899.63053233,0.00028,2]
[329288087,1718217056413,-899.63053233,0.00028,2]
[329288088,1718217056424,-899.63053233,0.00028,2]
[329288089,1718217056436,-899.63053233,0.00028,2]
[329288090,1718217056449,-899.63053233,0.00028,2]
[329288091,1718217056460,-899.63053233,0.00028,2]
[329288092,1718217056471,-899.63053233,0.00028,2]
[329288093,1718217056484,-899.63053233,0.00028,2]
[329288094,1718217056495,-899.63053233,0.00028,2]
[329288095,1718217056508,-899.63053233,0.00028,2]
[329288096,1718217056519,-899.63053233,0.00028,2]
[329288097,1718217056532,-899.63053233,0.00028,2]
[329288098,1718217056544,-899.63053233,0.00028,2]
[329288099,1718217056556,-899.63053233,0.00028,2]
[329288100,1718217056570,-899.63053233,0.00028,2]
[329288101,1718217056581,-899.63053233,0.00028,2]
[329288102,1718217056592,-899.63053233,0.00028,2]
[329288103,1718217056603,-899.63053233,0.00028,2]
[329288104,1718217056615,-899.63053233,0.00028,2]
[329288105,1718217056626,-899.63053233,0.00028,2]
[329288106,1718217056638,-899.63053233,0.00028,2]
[329288107,1718217056663,-899.63053233,0.00028,2]
[329288108,1718217056675,-899.63053233,0.00028,2]
[329288109,1718217056687,-899.63053233,0.00028,2]
[329288110,1718217056701,-899.63053233,0.00028,2]
[329288111,1718217056712,-899.63053233,0.00028,2]
[329288112,1718217056723,-899.63053233,0.00028,2]
[329288113,1718217056734,-899.63053233,0.00028,2]
[329288114,1718217056744,-899.63053233,0.00028,2]
[329288115,1718217056757,-899.63053233,0.00028,2]
[329288116,1718217056769,-899.63053233,0.00028,2]
[329288117,1718217056782,-899.63053233,0.00028,2]
[329288118,1718217056794,-899.63053233,0.00028,2]
[329288119,1718217056805,-899.63053233,0.00028,2]
[329288120,1718217056818,-899.63053233,0.00028,2]
[329288121,1718217056830,-899.63053233,0.00028,2]
[329288122,1718217056842,-899.63053233,0.00028,2]
[329288123,1718217056853,-899.63053233,0.00028,2]
[329288124,1718217056866,-899.63053233,0.00028,2]
[329288125,1718217056877,-899.63053233,0.00028,2]
[329288126,1718217056889,-899.63053233,0.00028,2]
[329288127,1718217056903,-899.63053233,0.00028,2]
[329288128,1718217056916,-899.63053233,0.00028,2]
[329288129,1718217056927,-899.63053233,0.00028,2]
[329288130,1718217056939,-899.63053233,0.00028,2]
[329288131,1718217056954,-899.63053233,0.00028,2]
[329288132,1718217056966,-899.63053233,0.00028,2]
[329288133,1718217056977,-899.63053233,0.00028,2]
[329288134,1718217056989,-899.63053233,0.00028,2]
[329288135,1718217057000,-899.63053233,0.00028,2]
[329288136,1718217057012,-899.63053233,0.00028,2]
[329288137,1718217057025,-899.63053233,0.00028,2]
[329288138,1718217057038,-899.63053233,0.00028,2]
[329288139,1718217057051,-899.63053233,0.00028,2]
[329288140,1718217057062,-151.23338322,0.00028001,2]
[329288141,1718217057074,-218.65835764,0.00028034,2]
[329288142,1718217057086,-218.65835764,0.00028036,2]
[329288143,1718217057097,-154.82327134,0.00028073,2]
[329288144,1718217057108,-151.23338322,0.0002808,2]
[329288145,1718217057119,-151.23338322,0.00028093,2]
[329288146,1718217057131,-150.0,0.00028118,2]
[329288147,1718217057144,-159.41319751,0.00028155,2]
[329288148,1718217057155,-151.23338322,0.00028163,2]
[329288149,1718217057167,-166.65534304,0.00028193,2]
[329288150,1718217057178,-3000.0,0.000282,2]
[329288151,1718217057189,-154.80026439,0.00028249,2]
[329288152,1718217057204,-299.51987427,0.00028284,2]
[329288153,1718217057214,-5800.0,0.00028297,2]
[329288154,1718217057226,-5800.0,0.00028305,2]
[329288155,1718217057236,-5800.0,0.00028313,2]
[329288156,1718217057248,-5800.0,0.00028322,2]
[329288157,1718217057258,-5800.0,0.0002833,2]
[329288158,1718217057269,-5800.0,0.00028339,2]
[329288159,1718217057280,-5800.0,0.00028348,2]
[329288160,1718217057294,-152.96395665,0.00028353,2]
[329288161,1718217057306,-5800.0,0.00028356,2]
[329288162,1718217057317,-160.58815834,0.00028404,2]
[329288163,1718217057328,-166.3696474,0.00028405,2]
[329288164,1718217057339,-151.23338322,0.0002843,2]
[329288165,1718217057350,-151.23338322,0.00028436,2]
[329288166,1718217057361,-151.23338322,0.0002846,2]
[329288167,1718217057372,-156.707655,0.00028561,2]
[329288168,1718217057384,-166.66666668,0.00028569,2]
[329288169,1718217057396,-154.13615401,0.00028596,2]
[329288170,1718217057406,-150.0,0.00028599,2]
[329288171,1718217057417,-500.0,0.00028599,2]
[329288172,1718217057428,-980.44398959,0.00028632,2]
[329288173,1718217057439,-1197.30769937,0.00028632,2]
[329288174,1718217057453,-158.32026496,0.00028635,2]
[329288175,1718217057464,-1847.62319578,0.00028639,2]
[329288176,1718217057474,-4831.98,0.00028656,2]
[329288177,1718217057486,-515.8472636,0.00028695,2]
[329288178,1718217057501,-150.0,0.00028701,2]
[329288179,1718217057512,-156.707655,0.00028733,2]
[329288180,1718217057523,-500.0,0.0002877,15]
[329288181,1718217057533,-162.72443493,0.00028804,2]
[329288182,1718217057545,-154.13615401,0.00028806,2]
[329288183,1718217057703,-218.65835764,0.00028813,2]
[329288184,1718217057714,-150.0,0.00028839,2]
[329288185,1718217057725,-151.36047297,0.00028852,2]
[329288186,1718217057736,-150.5,0.0002887,15]
[329288187,1718217057747,-150.5,0.0002888,15]
[329288188,1718217057757,-176.5,0.0002888,15]
[329288189,1718217057768,-150.0,0.00028883,2]
[329288190,1718217057779,-154.13615401,0.00028887,2]
[329288191,1718217057791,-150.5,0.0002889,15]
[329288192,1718217057802,-150.5,0.0002889,15]
[329288193,1718217057813,-218.65835764,0.0002891,2]
[329288194,1718217057824,-174.3119028,0.00028951,2]
[329288195,1718217057836,-154.80026439,0.00028955,2]
[329288196,1718217057847,-500.0,0.00028999,2]
[329288197,1718217057857,-500.0,0.00028999,2]
[329288198,1718217057868,-155.17252048,0.00028999,2]
[329288199,1718217057879,-500.0,0.00028999,2]
[329288200,1718217057890,-500.0,0.00028999,2]
[329288201,1718217057901,-1450.0,0.00029,2]
[329288202,1718217057913,-4173.19345114,0.00029,2]
[329288203,1718217057926,-1489.8087426,0.00029,2]
[329288204,1718217057937,-714.70400096,0.00029,2]
[329288205,1718217057957,-155.63070279,0.00029,2]
[329288206,1718217057967,-1107.0,0.00029,2]
[329288207,1718217057978,-310203.9372248,0.00029,2]
[329288208,1718217057990,-590.0,0.00029,2]
[329288209,1718217058001,-151.0,0.00029,7]
[329288210,1718217058011,-151.0,0.00029,7]
[329288211,1718217058022,-151.0,0.00029,7]
[329288212,1718217058033,-151.0,0.00029,7]
[329288213,1718217058044,-151.0,0.00029,7]
[329288214,1718217058055,-151.0,0.00029,7]
[329288215,1718217058065,-151.671684,0.00029,7]
[329288216,1718217058076,-152.57735208,0.00029027,2]
[329288217,1718217058087,-500.0,0.00029044,15]
[329288218,1718217058097,-151.0,0.00029044,7]
[329288219,1718217058108,-151.0,0.00029044,7]
[329288220,1718217058118,-151.0,0.00029044,7]
[329288221,1718217058129,-151.0,0.00029086,2]
[329288222,1718217058140,-2363.0,0.000291,2]
[329288223,1718217058151,-151.0,0.000291,7]
[329288224,1718217058161,-151.0,0.000291,7]
[329288225,1718217058173,-222.436319,0.000291,7]